bitfinex-derivatives/quotes_ETHF0:USTF0_20220108
["timestamp","ask_amount","ask_price","bid_price","bid_amount"]
[1641608138598,3.398477,3205.7,3204.7,2.00479]
[1641608138798,1.5,3205.4,3204.7,2.00479]
[1641608139000,0.264788,3205.3,3204.7,3.50364677]
[1641608139901,2.00479,3205.2,3204.7,3.50364677]
[1641608140902,2.00479,3205.7,3205.0,1.5]
[1641608141103,2.00479,3205.7,3205.0,0.6154]
[1641608141901,2.00479,3205.7,3205.1,2.00479]
[1641608142503,1.55932288,3205.4,3204.7,1.49885677]
[1641608142702,1.55948581,3205.2,3204.7,1.49885677]
[1641608142903,1.55957823,3204.9,3204.7,1.49885677]
[1641608143101,0.6058,3204.9,3204.7,1.49885677]
[1641608144005,2.00479,3204.8,3204.7,1.49885677]
[1641608145205,1.02888725,3206.0,3204.7,1.49885677]
[1641608145404,1.02888725,3206.0,3204.7,3.91795677]
[1641608145606,2.58789653,3206.0,3205.1,1.5]
[1641608145803,2.58789653,3206.0,3204.7,3.91795677]
[1641608145804,1.02888725,3206.0,3204.7,3.91795677]
[1641608146004,2.00479,3205.9,3205.1,2.00479]
[1641608146207,0.905575,3205.8,3205.1,2.00479]
[1641608147406,2.00479,3205.9,3205.1,2.00479]
[1641608149306,0.905575,3205.8,3205.1,2.00479]
[1641608149506,0.905575,3205.8,3204.7,1.49885677]
[1641608150108,2.00479,3205.2,3204.7,1.49885677]
[1641608150511,3.56388192,3205.9,3204.7,1.49885677]
[1641608150909,2.00479,3205.9,3204.8,1.5]
[1641608151110,2.00479,3205.9,3204.7,1.49885677]
[1641608152009,2.00479,3205.9,3205.0,2.00479]
[1641608152609,1.55914054,3205.8,3205.0,2.00479]
[1641608159220,2.00479,3205.9,3205.0,2.00479]
[1641608163724,2.00479,3205.9,3205.0,3.50479]
[1641608163923,0.76974288,3206.6,3205.0,2.00479]
[1641608164123,1.55879786,3206.5,3206.1,2.00479]
[1641608164323,0.76974288,3206.6,3206.1,2.00479]
[1641608164723,0.76974288,3206.8,3206.1,2.00479]
[1641608164924,1.5586788,3206.7,3206.2,1.52524832]
[1641608165523,2.1994658,3206.7,3206.2,1.52524832]
[1641608166224,2.1994658,3206.7,3206.1,1.93786317]
[1641608167424,0.264788,3206.6,3206.1,1.93786317]
[1641608168126,2.1994658,3206.7,3206.1,1.93786317]
[1641608168526,0.640787,3206.7,3206.1,1.93786317]
[1641608168726,0.905575,3206.7,3206.1,1.93786317]
[1641608169528,0.905575,3206.7,3206.2,1.49749979]
[1641608171627,0.640787,3206.7,3206.2,1.49749979]
[1641608174432,2.00479,3206.9,3206.2,1.49749979]
[1641608174633,0.640787,3206.8,3206.2,1.49749979]
[1641608176935,3.56339592,3206.9,3206.2,1.49749979]
[1641608177435,0.76974288,3206.8,3206.2,1.49749979]
[1641608178337,0.640787,3206.8,3206.2,1.49749979]
[1641608178537,4.3331388,3206.9,3206.2,1.49749979]
[1641608180741,3.56339592,3206.9,3206.2,1.49749979]
[1641608181342,2.00479,3206.9,3206.2,1.49749979]
[1641608181542,2.77453288,3206.9,3206.2,1.49749979]
[1641608182144,0.76974288,3206.9,3206.7,2.00479]
[1641608182346,1.02888725,3207.1,3206.7,2.00479]
[1641608182546,1.02888725,3207.1,3206.8,1.5]
[1641608182746,1.02888725,3207.3,3206.8,1.5]
[1641608182944,1.28739873,3207.5,3206.8,1.5]
[1641608184250,1.28739873,3207.5,3207.3,2.00479]
[1641608184652,0.46384297,3207.8,3207.3,2.00479]
[1641608184851,0.46384297,3207.8,3206.8,1.5]
[1641608185254,0.46384297,3207.8,3206.9,1.54197604]
[1641608185453,2.00479,3207.9,3206.9,1.54197604]
[1641608186254,2.00479,3207.9,3206.9,3.54676604]
[1641608186654,0.46409088,3207.8,3206.9,3.54676604]
[1641608189861,1.75148961,3207.8,3206.9,3.54676604]
[1641608191460,2.84559907,3207.7,3206.9,1.54197604]
[1641608191660,1.5,3207.4,3206.9,1.54197604]
[1641608192061,1.55843103,3207.2,3206.9,1.54197604]
[1641608192262,4.00958,3207.0,3206.9,1.54197604]
[1641608192562,5.020568,3207.0,3206.9,1.54197604]
[1641608192763,5.020568,3207.0,3206.9,0.06309617]
[1641608193363,5.48465888,3207.0,3206.9,0.06309617]
[1641608196768,6.51828445,3207.0,3206.9,0.06309617]
[1641608197267,5.020568,3207.0,3206.9,0.06309617]
[1641608198669,5.46803035,3207.0,3206.9,0.06309617]
[1641608201773,5.020568,3207.0,3206.9,0.06309617]
[1641608203176,5.79636572,3207.0,3206.9,0.06309617]
[1641608204978,5.020568,3207.0,3206.9,0.06309617]
[1641608205179,5.46781878,3207.0,3206.9,0.06309617]
[1641608206084,6.50144435,3207.0,3206.9,0.06309617]
[1641608207982,6.50144435,3207.0,3206.9,0.00489629]
[1641608211890,4.23186635,3207.0,3206.9,0.93009629]
[1641608212089,1.48087635,3207.0,3206.9,0.93009629]
[1641608213091,1.03362557,3207.0,3206.9,0.93009629]
[1641608213292,1.03362557,3207.1,3206.9,0.93009629]
[1641608214394,0.77679552,3207.0,3206.9,14.27009629]
[1641608214593,1.28739873,3207.5,3206.9,15.77009629]
[1641608214794,1.28739873,3207.5,3206.9,14.27009629]
[1641608214996,1.54487848,3207.7,3207.4,1.5]
[1641608215197,1.54487848,3207.7,3206.9,2.4252]
[1641608216097,2.20868149,3208.2,3207.0,0.14112212]
[1641608216299,2.20868149,3208.2,3207.5,2.00479]
[1641608217206,1.54487848,3208.2,3207.6,1.5]
[1641608217406,1.54487848,3208.2,3207.6,1.96217181]
[1641608217808,1.54487848,3208.2,3207.6,3.46217181]
[1641608218306,2.00479,3208.3,3207.6,3.46217181]
[1641608218307,3.54966848,3208.3,3207.6,3.46217181]
[1641608219107,3.54966848,3208.3,3207.6,1.96217181]
[1641608219406,4.19045548,3208.3,3207.6,1.96217181]
[1641608220411,0.264788,3208.2,3207.6,1.36167181]
[1641608222209,1.80966648,3208.2,3207.6,1.36167181]
[1641608223111,0.264788,3208.2,3207.6,1.36167181]
[1641608224211,1.54487848,3208.1,3207.6,0.18691394]
[1641608224409,0.264788,3208.0,3207.6,0.18691394]
[1641608225111,1.56212167,3208.0,3207.6,0.18691394]
[1641608225911,1.0376977,3207.7,3207.6,0.18691394]
[1641608227813,1.29733367,3208.0,3207.6,0.18691394]
[1641608228014,1.29733367,3207.9,3207.6,0.18691394]
[1641608228714,1.29733367,3208.0,3207.6,0.18691394]
[1641608228915,1.03710912,3207.7,3207.6,0.18691394]
[1641608229918,1.03710912,3207.8,3207.6,0.18691394]
[1641608231818,1.29733367,3207.9,3207.6,0.18691394]
[1641608232218,0.640787,3207.8,3207.6,0.18691394]
[1641608232819,1.93812067,3207.8,3207.6,0.18691394]
[1641608234319,1.29733367,3207.8,3207.6,0.18691394]
[1641608235521,0.264788,3207.7,3207.6,0.18691394]
[1641608235723,0.264788,3207.7,3207.6,1.394e-05]
[1641608236024,0.264788,3207.7,3206.7,2.79851771]
[1641608236025,3.32298834,3207.7,3206.7,2.79851771]
[1641608236522,2.00479,3207.1,3206.7,0.79372771]
[1641608236722,2.58659,3207.1,3206.7,2.06796623]
[1641608236923,0.264788,3207.0,3206.7,1.27423852]
[1641608237625,0.905575,3207.0,3206.7,1.27423852]
[1641608238124,3.05878571,3206.8,3206.2,0.79372771]
[1641608238324,1.5,3206.4,3205.9,1.85174149]
[1641608238529,2.00479,3206.3,3205.9,0.79372771]
[1641608238925,0.264788,3206.2,3205.9,0.79372771]
[1641608239726,0.264788,3206.2,3206.0,0.79355676]
[1641608239926,0.66839748,3206.2,3206.0,0.79355676]
[1641608241629,0.40360948,3206.1,3206.0,0.79355676]
[1641608246634,1.90360948,3206.1,3205.1,0.79372771]
[1641608246837,1.5,3205.4,3205.1,0.79372771]
[1641608247038,0.264788,3205.3,3205.1,0.79372771]
[1641608247436,0.640787,3205.2,3205.1,0.79372771]
[1641608248037,0.892,3205.4,3204.9,1.05801378]
[1641608248238,1.0356687,3205.7,3204.6,0.82472771]
[1641608248439,2.00479,3205.1,3204.7,1.37126516]
[1641608248736,2.00479,3205.1,3204.7,1.51227798]
[1641608248938,2.00479,3205.1,3204.7,1.37126516]
[1641608249539,2.645577,3205.1,3204.7,1.37126516]
[1641608251938,2.00479,3205.1,3204.7,1.37126516]
[1641608257046,2.00479,3205.1,3204.7,2.18346516]
[1641608257649,2.00479,3205.1,3204.7,3.18662107]
[1641608258748,2.00479,3205.1,3204.7,1.81535591]
[1641608260852,2.00479,3205.1,3204.7,1.00315591]
[1641608261052,2.645577,3205.1,3204.7,1.00315591]
[1641608261652,2.00479,3205.1,3204.7,1.00315591]
[1641608262654,66.31786138,3206.0,3205.0,1.5]
[1641608262952,33.68746138,3206.0,3205.0,2.2998]
[1641608263155,32.9154,3206.0,3205.0,2.2998]
[1641608263355,32.9154,3206.0,3205.0,0.7998]
[1641608264557,32.9154,3206.0,3205.0,2.00479]
[1641608264558,2.00479,3205.7,3205.0,2.00479]
[1641608264758,0.905575,3205.6,3205.0,2.00479]
[1641608274467,2.84339,3205.7,3205.0,2.00479]
[1641608274867,0.640787,3205.6,3205.0,2.00479]
[1641608275867,0.905575,3205.6,3205.0,2.00479]
[1641608276867,0.264788,3205.6,3205.0,2.00479]
[1641608277070,2.00479,3205.7,3205.0,2.00479]
[1641608278172,34.92019,3206.0,3205.0,2.00479]
[1641608278472,34.92019,3206.0,3205.1,1.5]
[1641608278674,34.92019,3206.0,3205.4,2.00479]
[1641608278872,0.640787,3205.9,3205.5,1.00639548]
[1641608279273,0.264788,3205.8,3205.5,1.00639548]
[1641608280672,2.00479,3205.6,3205.5,1.00639548]
[1641608280878,2.269578,3205.6,3205.5,1.00639548]
[1641608285590,3.027178,3205.6,3205.5,1.00639548]
[1641608292898,3.42921168,3205.6,3205.5,1.00639548]
[1641608293700,3.79911853,3205.6,3205.5,1.00639548]
[1641608295003,3.027178,3205.6,3205.5,1.00639548]
[1641608295203,3.429306,3205.6,3205.5,1.00639548]
[1641608298607,4.72389187,3205.6,3205.5,1.00639548]
[1641608299514,3.429306,3205.6,3205.5,1.00639548]
[1641608299711,3.164518,3205.6,3205.5,1.00639548]
[1641608299912,2.406918,3205.6,3205.5,1.00639548]
[1641608300211,0.402128,3205.6,3205.5,1.82656212]
[1641608302014,3.23481256,3205.9,3205.5,1.82656212]
[1641608302214,1.03086599,3205.7,3205.5,1.82656212]
[1641608302514,1.03086599,3205.7,3205.6,0.14146664]
[1641608303016,1.68993408,3205.9,3205.6,0.14146664]
[1641608303317,1.28780608,3205.7,3205.6,0.14146664]
[1641608306717,1.28780608,3205.8,3205.6,0.14146664]
[1641608307518,1.28780608,3205.7,3205.6,0.14146664]
[1641608308523,0.402128,3205.8,3205.6,0.14146664]
[1641608308721,1.54487848,3205.8,3205.6,0.14146664]
[1641608308920,2.00479,3206.0,3205.6,1.00716664]
[1641608309522,2.00479,3206.0,3205.7,0.14146664]
[1641608309922,1.03106021,3205.8,3205.7,0.14146664]
[1641608310823,1.03106021,3205.8,3205.6,0.14146664]
[1641608311025,1.03106021,3205.8,3205.5,1.80012319]
[1641608311026,1.03106021,3205.8,3205.7,0.14146664]
[1641608311923,1.03106021,3205.8,3205.6,0.14146664]
[1641608312123,1.03106021,3205.8,3205.7,0.14146664]
[1641608312724,1.03106021,3205.8,3205.6,0.14146664]
[1641608312922,1.03106021,3205.8,3205.7,0.14146664]
[1641608313324,1.03106021,3205.8,3205.7,0.96356664]
[1641608313527,1.03106021,3205.8,3205.7,0.8221]
[1641608313725,1.03106021,3205.8,3205.7,0.96356664]
[1641608316633,3.29361527,3206.0,3205.7,0.96356664]
[1641608317333,3.29361527,3206.0,3205.8,0.14146664]
[1641608317537,2.00479,3206.0,3205.8,0.14146664]
[1641608321039,3.29361527,3206.0,3205.8,0.14146664]
[1641608321639,0.264788,3205.9,3205.8,0.14146664]
[1641608322241,0.264788,3205.9,3205.6,0.14146664]
[1641608322440,0.264788,3205.9,3205.8,0.14146664]
[1641608322739,0.264788,3205.9,3205.7,0.14146664]
[1641608323140,0.264788,3205.9,3205.6,0.14146664]
[1641608323440,0.264788,3205.9,3205.8,0.14146664]
[1641608323841,0.264788,3205.9,3205.7,0.14146664]
[1641608324041,1.55361327,3205.9,3205.8,0.14146664]
[1641608324440,1.55361327,3205.9,3205.6,0.14146664]
[1641608324840,1.55361327,3205.9,3205.8,0.14146664]
[1641608325041,0.264788,3205.9,3205.8,0.14146664]
[1641608325241,0.264788,3205.9,3205.6,0.14146664]
[1641608325444,0.264788,3205.9,3205.8,0.14146664]
[1641608325842,0.264788,3205.9,3205.7,0.14146664]
[1641608326062,0.264788,3205.9,3205.8,0.14146664]
[1641608326547,0.264788,3205.9,3205.6,0.14146664]
[1641608326842,0.264788,3205.9,3205.8,0.14146664]
[1641608327443,0.264788,3205.9,3205.6,0.14146664]
[1641608327643,0.264788,3205.9,3205.5,1.00639548]
[1641608327844,0.264788,3205.9,3205.7,0.14140998]
[1641608328143,0.264788,3205.9,3205.6,0.14140998]
[1641608328543,0.264788,3205.9,3205.8,0.14140998]
[1641608328744,0.264788,3205.9,3205.7,0.14140998]
[1641608329046,0.264788,3205.9,3205.8,0.14140998]
[1641608329245,0.64667103,3205.9,3205.8,0.14140998]
[1641608329445,0.64667103,3205.9,3205.6,0.14140998]
[1641608329646,0.64667103,3205.9,3205.8,0.14140998]
[1641608329945,0.64667103,3205.9,3205.7,0.14140998]
[1641608330347,0.64667103,3205.9,3205.8,0.14140998]
[1641608330947,0.38188303,3205.8,3205.6,0.14140998]
[1641608331146,0.38188303,3205.8,3205.5,1.00639548]
[1641608331748,0.64667103,3205.8,3205.5,1.00639548]
[1641608331951,0.264788,3205.8,3205.5,1.00639548]
[1641608332549,0.7714262,3205.6,3205.5,1.00639548]
[1641608334354,1.0362142,3205.6,3205.5,1.00639548]
[1641608335952,0.64676833,3205.6,3205.5,1.00639548]
[1641608339054,2.65155833,3205.6,3205.5,1.00639548]
[1641608340061,3.9403836,3205.6,3205.5,1.00639548]
[1641608340456,3.9403836,3205.6,3205.5,0.20976468]
[1641608341458,2.65155833,3205.6,3205.5,0.20976468]
[1641608344263,3.93566271,3205.6,3205.5,0.20976468]
[1641608344467,1.66608471,3205.6,3205.5,0.20976468]
[1641608344764,2.21028436,3205.8,3205.5,0.20976468]
[1641608345363,1.54609136,3205.8,3205.5,0.20976468]
[1641608345564,2.00479,3206.0,3205.5,0.20976468]
[1641608346367,3.54607605,3206.0,3205.6,0.1414032]
[1641608346666,3.54607605,3206.0,3205.6,1.0532032]
[1641608347069,2.00479,3206.0,3205.6,1.0532032]
[1641608347266,1.02798067,3205.8,3205.7,0.1414032]
[1641608347866,1.02798067,3205.8,3205.7,1.6414032]
[1641608348067,31.8491,3207.2,3205.8,13.34]
[1641608348367,1.94084958,3206.7,3206.4,1.5]
[1641608348567,2.56872866,3207.0,3206.6,1.5]
[1641608348766,2.56872866,3207.0,3206.4,2.2867]
[1641608348968,2.56872866,3207.0,3206.6,1.5]
[1641608349165,2.56872866,3207.0,3206.8,2.00479]
[1641608349367,3.21202139,3207.2,3206.8,2.00479]
[1641608350367,3.53322353,3207.4,3206.9,0.14125473]
[1641608350568,3.53322353,3207.4,3206.8,2.00479]
[1641608350768,2.00479,3207.6,3207.0,0.14125197]
[1641608350969,0.640787,3207.5,3207.1,1.1032209]
[1641608351567,0.264788,3207.4,3207.1,1.1032209]
[1641608352367,2.00479,3207.6,3207.1,1.1032209]
[1641608353369,0.640787,3207.5,3207.1,1.1032209]
[1641608353969,2.269578,3207.6,3207.1,1.1032209]
[1641608354171,1.28724375,3207.2,3207.1,1.1032209]
[1641608355071,1.28724375,3207.4,3207.1,1.1032209]
[1641608355270,1.28724375,3207.4,3207.1,1.8334209]
[1641608356072,1.28724375,3207.2,3207.1,1.8334209]
[1641608356472,1.54506203,3207.5,3207.1,3.3334209]
[1641608356672,1.54506203,3207.5,3207.4,1.5]
[1641608356972,2.59473831,3207.7,3207.4,1.5]
[1641608357175,2.59473831,3207.7,3207.5,2.00479]
[1641608357373,2.59473831,3207.7,3207.6,0.96098862]
[1641608357573,1.54597088,3207.8,3207.6,0.96098862]
[1641608358875,0.66384149,3208.0,3207.6,0.96098862]
[1641608359075,1.93089682,3208.2,3207.6,0.96098862]
[1641608359375,0.905575,3208.1,3207.6,0.96098862]
[1641608359576,1.499375,3208.1,3207.6,0.96098862]
[1641608361078,0.858588,3208.1,3207.6,0.96098862]
[1641608361279,2.00479,3207.9,3207.6,0.96098862]
[1641608361478,2.00479,3207.9,3207.6,0.37583158]
[1641608364390,0.77081864,3207.7,3207.6,0.37583158]
[1641608365292,3.03254818,3207.9,3207.6,0.37583158]
[1641608365491,1.28434385,3207.8,3207.6,0.37583158]
[1641608366193,1.02775818,3207.8,3207.6,0.37583158]
[1641608366394,0.76915914,3207.8,3207.6,0.37583158]
[1641608369495,2.00479,3207.9,3207.6,0.37583158]
[1641608369695,2.00479,3207.9,3207.6,1.27653158]
[1641608381813,0.264788,3208.0,3207.6,1.27653158]
[1641608388518,1.03394714,3208.0,3207.6,1.27653158]
[1641608388816,1.03394714,3208.0,3207.6,0.60562334]
[1641608389017,1.03394714,3208.0,3207.5,2.00479]
[1641608389216,2.53394714,3208.0,3207.5,2.00479]
[1641608389416,2.53394714,3208.0,3207.6,1.20450017]
[1641608390017,1.03394714,3208.0,3207.6,1.20450017]
[1641608391222,0.264788,3208.0,3207.6,1.20450017]
[1641608392520,2.77394914,3208.3,3207.6,1.20450017]
[1641608393120,0.264788,3208.2,3207.6,1.20450017]
[1641608395725,2.00479,3208.3,3207.6,1.20450017]
[1641608397624,0.640787,3208.2,3207.6,1.20450017]
[1641608398625,2.77394914,3208.3,3207.6,1.20450017]
[1641608400628,3.03873714,3208.3,3207.6,1.20450017]
[1641608400828,0.76915914,3208.2,3207.6,1.20450017]
[1641608401231,0.905575,3208.1,3207.6,1.20450017]
[1641608402330,0.76915914,3208.0,3207.6,1.20450017]
[1641608402731,0.264788,3207.9,3207.6,1.20450017]
[1641608403532,1.40994614,3208.1,3207.6,1.20450017]
[1641608404534,0.76915914,3207.9,3207.6,1.20450017]
[1641608405747,0.76915914,3207.8,3207.6,1.20450017]
[1641608406346,0.264788,3207.7,3207.6,1.20450017]
[1641608406746,1.03394714,3207.7,3207.6,1.20450017]
[1641608407345,1.03394714,3207.7,3207.6,1.34571036]
[1641608407747,0.264788,3207.7,3207.6,1.34571036]
[1641608408748,1.02775818,3208.0,3207.6,1.34571036]
[1641608408947,0.25011849,3207.7,3207.6,1.34571036]
[1641608409149,1.27787667,3207.7,3207.6,1.34571036]
[1641608409447,1.27787667,3207.7,3207.6,1.20450017]
[1641608410049,1.27787667,3207.7,3207.6,1.46928817]
[1641608410449,1.02775818,3207.7,3207.6,1.46928817]
[1641608414153,1.02775818,3207.8,3207.6,1.46928817]
[1641608414752,1.02775818,3207.8,3207.6,1.20450017]
[1641608414951,1.29254518,3207.8,3207.6,1.20450017]
[1641608415855,0.25011849,3207.7,3207.6,1.20450017]
[1641608416055,1.27787667,3207.7,3207.6,1.20450017]
[1641608417055,0.25011849,3207.7,3207.6,1.20450017]
[1641608418054,0.89090549,3207.7,3207.6,1.20450017]
[1641608419157,0.25011849,3207.7,3207.6,1.20450017]
[1641608422760,1.5320504,3207.7,3207.6,1.20450017]
[1641608423862,0.25011849,3207.7,3207.6,1.20450017]
[1641608424565,0.25011849,3207.7,3207.6,1.34597223]
[1641608426065,0.25011849,3207.7,3207.6,2.84597223]
[1641608426269,1.28193191,3207.8,3207.6,3.11076023]
[1641608426566,1.28193191,3207.8,3207.6,1.61076023]
[1641608426766,1.93089682,3208.3,3207.7,0.14147206]
[1641608426967,1.93089682,3208.3,3207.7,1.04707206]
[1641608427367,1.93089682,3208.3,3207.8,0.264788]
[1641608427567,1.93089682,3208.3,3207.8,0.40626006]
[1641608427770,2.65809899,3208.6,3207.8,0.40626006]
[1641608427771,1.03252319,3208.0,3207.8,0.40626006]
[1641608427968,1.03252319,3208.0,3207.9,2.14626206]
[1641608432173,0.03,3208.5,3207.9,3.91105006]
[1641608432373,0.03,3208.5,3208.2,1.5]
[1641608432775,1.93089682,3208.8,3208.3,0.264788]
[1641608432973,1.93089682,3208.8,3208.4,1.5]
[1641608433175,2.5745291,3209.1,3208.7,1.5]
[1641608433774,3.21202139,3209.3,3208.8,0.264788]
[1641608433974,3.53322353,3209.6,3209.0,2.00479]
[1641608434176,3.53322353,3209.6,3209.1,1.40255195]
[1641608434376,3.53322353,3209.6,3209.1,2.19865195]
[1641608434573,3.53322353,3209.6,3209.2,0.264788]
[1641608435075,2.00479,3209.8,3209.2,0.264788]
[1641608436074,2.00479,3209.8,3209.4,2.00479]
[1641608436274,1.5504909,3209.7,3209.5,0.264788]
[1641608436673,1.5504909,3209.7,3209.6,0.82944194]
[1641608437277,1.5504909,3209.7,3209.5,0.264788]
[1641608437278,1.5504909,3209.7,3209.5,0.26095148]
[1641608437475,1.13492101,3210.3,3209.5,0.26095148]
[1641608438076,1.13492101,3210.3,3209.9,2.00479]
[1641608438275,1.13492101,3210.3,3210.0,0.260952]
[1641608438676,1.13492101,3210.3,3210.1,0.91954944]
[1641608439276,0.264788,3210.2,3210.1,0.91954944]
[1641608439977,2.269578,3210.2,3210.1,0.30200084]
[1641608446884,2.42078636,3210.2,3210.1,0.30200084]
[1641608448687,13.34,3210.1,3208.8,34.2454]
[1641608448986,1.5,3209.5,3208.3,1.05748727]
[1641608449187,2.207,3209.5,3208.3,1.05748727]
[1641608449388,1.5,3209.2,3208.3,1.05748727]
[1641608449589,0.905575,3209.1,3208.3,1.05748727]
[1641608450185,2.00479,3208.7,3208.3,1.05748727]
[1641608450390,0.264788,3208.6,3208.3,1.05748727]
[1641608450587,0.264788,3208.6,3208.0,34.30339]
[1641608450588,0.264788,3208.6,3208.4,0.85049676]
[1641608451287,2.65149,3208.7,3208.5,0.260952]
[1641608451489,2.00479,3208.7,3208.5,0.40174999]
[1641608451689,2.00479,3208.7,3208.5,0.260952]
[1641608452793,2.00479,3208.7,3208.4,0.85049676]
[1641608453091,0.264788,3208.6,3208.4,0.85049676]
[1641608453498,0.264788,3208.6,3208.4,9.676e-05]
[1641608453697,13.34,3208.4,3207.7,0.79372771]
[1641608453897,1.55811294,3207.9,3207.7,0.79372771]
[1641608454096,0.896,3207.9,3207.7,0.79372771]
[1641608454299,17.109578,3207.8,3207.5,1.05748727]
[1641608454500,3.05824647,3207.6,3207.5,8.727e-05]
[1641608454699,3.05827561,3207.6,3207.5,8.727e-05]
[1641608454899,3.32306361,3207.6,3207.5,1.02463938]
[1641608455101,1.764788,3207.6,3207.5,1.02463938]
[1641608455299,0.264788,3207.6,3207.5,1.02463938]
[1641608455902,0.905575,3207.6,3207.5,1.02463938]
[1641608456300,2.910365,3207.6,3207.5,1.02463938]
[1641608460403,2.910365,3207.6,3206.1,2.00479]
[1641608460603,1.5,3206.8,3206.1,2.00479]
[1641608460805,1.5,3206.6,3206.1,1.32367056]
[1641608461203,0.264788,3206.5,3206.1,1.32367056]
[1641608461702,0.264788,3206.5,3206.4,0.87289055]
[1641608462303,4.274368,3206.5,3206.4,0.87289055]
[1641608462907,4.00958,3206.5,3206.4,0.87289055]
[1641608463506,2.00479,3206.5,3206.4,0.87289055]
[1641608463703,2.00479,3206.5,3206.4,1.13384255]
[1641608465108,2.00479,3207.1,3206.4,1.13384255]
[1641608465307,2.00479,3207.1,3206.4,2.04474255]
[1641608466309,2.00479,3207.1,3206.5,2.00479]
[1641608466709,0.905575,3207.0,3206.5,2.00479]
[1641608467209,5.374,3208.4,3206.9,1.5]
[1641608467409,5.374,3208.4,3207.7,3.05733888]
[1641608467611,31.9599,3209.1,3207.8,0.260952]
[1641608468011,31.9599,3209.1,3207.9,1.34504818]
[1641608468212,2.00479,3208.9,3208.2,2.00479]
[1641608468412,2.00479,3208.9,3208.3,0.260952]
[1641608468814,0.640787,3208.7,3208.3,0.260952]
[1641608469013,0.640787,3208.7,3208.4,0.99893445]
[1641608469312,0.640787,3208.7,3208.5,0.260952]
[1641608473015,15.480787,3208.7,3208.4,0.99893445]
[1641608473215,1.5,3208.5,3208.4,0.99893445]
[1641608473415,1.5,3208.5,3207.0,1.55766879]
[1641608473616,1.5,3208.3,3207.0,1.55766879]
[1641608474016,16.067587,3208.7,3207.0,1.55766879]
[1641608474218,16.067587,3208.7,3207.1,0.14077316]
[1641608474417,2.00479,3207.9,3207.2,2.00479]
[1641608474618,2.00479,3207.9,3207.3,0.260952]
[1641608474818,2.269578,3207.9,3207.3,0.260952]
[1641608475019,0.640787,3207.8,3207.4,0.83405952]
[1641608475219,1.492487,3207.8,3207.4,0.83405952]
[1641608475421,1.492487,3207.8,3207.5,0.260952]
[1641608475820,0.8517,3207.8,3207.5,0.260952]
[1641608477022,0.640787,3207.7,3207.5,0.260952]
[1641608477222,0.640787,3207.7,3207.4,0.83405952]
[1641608478824,0.8517,3207.8,3207.4,0.83405952]
[1641608479026,4.00958,3207.9,3207.5,0.260952]
[1641608479624,4.00958,3207.9,3207.6,0.14076068]
[1641608480124,4.00958,3207.9,3207.7,0.260952]
[1641608480727,32.8755,3208.6,3207.7,0.260952]
[1641608481025,1.03120107,3208.9,3207.8,0.14074484]
[1641608481225,1.03120107,3208.9,3207.9,1.43792123]
[1641608481825,1.03120107,3208.9,3207.9,2.93792123]
[1641608482428,2.00479,3208.9,3208.2,2.00479]
[1641608482627,2.00479,3208.9,3208.3,0.260952]
[1641608483228,2.00479,3208.9,3208.4,1.51832367]
[1641608483426,0.640787,3208.8,3208.4,1.51832367]
[1641608483627,0.640787,3208.8,3208.5,0.260952]
[1641608484628,2.00479,3208.9,3208.5,0.260952]
[1641608487630,2.645577,3208.9,3208.5,0.260952]
[1641608488632,2.00479,3208.9,3208.5,0.260952]
[1641608491034,2.645577,3208.9,3208.5,0.260952]
[1641608497539,2.910365,3208.9,3208.4,1.51832367]
[1641608497839,1.5,3208.6,3207.3,0.79136001]
[1641608498041,13.34,3208.5,3207.3,0.79136001]
[1641608498239,1.55794787,3208.2,3207.3,0.79136001]
[1641608498640,2.00479,3207.8,3207.3,0.79136001]
[1641608498841,0.640787,3207.7,3207.4,0.86866848]
[1641608501344,0.640787,3207.7,3207.5,0.14087851]
[1641608502149,0.905575,3207.7,3207.5,0.14087851]
[1641608502345,2.00479,3207.8,3207.5,0.14087851]
[1641608502542,2.00479,3207.8,3207.6,0.260952]
[1641608503142,2.00479,3207.8,3207.7,0.14087851]
[1641608503543,2.00479,3208.1,3207.7,0.14087851]
[1641608504743,2.00479,3208.1,3207.7,0.40183051]
[1641608505045,2.00479,3208.1,3207.8,0.14087851]
[1641608505242,2.00479,3208.1,3207.9,1.46289783]
[1641608505443,2.00479,3208.1,3207.9,1.72384983]
[1641608508447,2.00479,3208.1,3208.0,0.14106705]
[1641608511547,2.00479,3208.6,3208.0,0.14106705]
[1641608511746,2.00479,3208.6,3208.1,0.260952]
[1641608511946,1.03120107,3208.7,3208.1,0.260952]
[1641608512146,1.03120107,3208.6,3208.2,0.14106705]
[1641608512646,1.03120107,3208.6,3208.5,2.00479]
[1641608513048,1.03120107,3208.6,3208.5,2.14585705]
[1641608513246,1.03120107,3208.6,3208.5,3.49803635]
[1641608513646,1.03120107,3208.6,3208.5,4.90784282]
[1641608513847,1.03120107,3208.6,3208.5,5.16879482]
[1641608514047,0.14330065,3209.1,3208.5,5.16879482]
[1641608514547,0.14330065,3209.1,3208.6,0.14106705]
[1641608514948,0.14330065,3209.1,3208.7,0.260952]
[1641608515348,1.17450172,3209.1,3208.7,0.260952]
[1641608515554,0.640787,3209.0,3208.7,0.260952]
[1641608515748,0.640787,3209.0,3208.5,3.41459647]
[1641608515949,0.264788,3208.9,3208.5,3.41459647]
[1641608516150,0.640787,3209.0,3208.6,0.260952]
[1641608516349,0.640787,3209.0,3208.6,0.4020317]
[1641608516749,0.640787,3209.0,3208.6,0.260952]
[1641608517156,0.14330065,3208.9,3208.6,0.260952]
[1641608518051,0.640787,3209.0,3208.7,0.14107565]
[1641608518452,1.03120107,3209.1,3208.8,0.260952]
[1641608519850,1.17454303,3209.1,3208.8,0.260952]
[1641608520052,0.14334196,3209.1,3208.8,0.260952]
[1641608520253,0.14334196,3209.1,3208.5,3.41459647]
[1641608520655,0.40812996,3209.1,3208.6,0.14112839]
[1641608521054,1.03120107,3209.0,3208.6,0.40208039]
[1641608521557,1.03120107,3209.0,3208.6,0.260952]
[1641608521754,1.03120107,3209.0,3208.5,3.41459647]
[1641608521954,0.264788,3208.9,3208.5,3.41459647]
[1641608523757,0.14334196,3208.8,3208.5,3.41459647]
[1641608523957,0.14334196,3208.8,3208.6,0.1411243]
[1641608524158,0.14334196,3208.8,3208.6,1.3192763]
[1641608524764,1.03120107,3208.9,3208.6,1.178152]
[1641608526468,1.03120107,3208.8,3208.7,0.14116941]
[1641608529771,1.03120107,3209.0,3208.7,0.14116941]
[1641608530173,0.14334196,3208.8,3208.7,0.14116941]